Cogmind - Beta 13 @@@ ROGUE MODE // 2024.05.03 @ 21:35:30 Player: Compound1080 Result: Destroyed by G-47 Trooper with Particle Gun Performance ------------- Evolutions (2) 1000 Regions Visited (3) 600 Robots Destroyed (30) 150 Value Destroyed (771) 771 Prototype IDs (1) 20 Alien Tech Used (0) 0 Bonus (0) 0 TOTAL SCORE: 2541 Bonus ------- None Cogmind --------- Core Integrity 0/550 Matter 268/300 Energy 115/125 System Corruption 2% Temperature Warm (135) Movement Walking (190) Ox1 Location -8/Materials Parts ------- > --- POWER (2) -------- Light Ion Engine > --- PROPULSION (4) --- Aluminum Leg > --- UTILITY (3) ------ Medium Storage Unit > --- WEAPON (2) ------- Particle Gun > --- INVENTORY (10) --- Heat Sink Cooling System Small Storage Unit Terrain Scanner Tractor Beam Trap Extractor (0/4) Peak State ------------ > --- POWER ------------ Improved Ion Engine > --- PROPULSION ------- Aluminum Leg Aluminum Leg > --- UTILITY ---------- Medium Storage Unit Signal Interpreter Hardened Medium Armor Plating > --- WEAPON ----------- Heavy Assault Rifle > --- INVENTORY -------- Light Ion Engine Heat Sink Cooling System Small Storage Unit Terrain Scanner Tractor Beam Trap Extractor EM Pulse Gun [Rating: 12] Favorites ----------- Power Light Ion Engine Engine Light Ion Engine Propulsion Aluminum Leg Leg Aluminum Leg Flight Unit Flight Unit Utility Medium Storage Unit Device Terrain Scanner Storage Medium Storage Unit Processor Signal Interpreter Protection Weapon Shielding Weapon Light Assault Rifle Energy Gun Heavy EM Pulse Gun Ballistic Gun Light Assault Rifle Launcher Grenade Launcher Build | -11 -10 -9 -8 ------- Run | Yrd Mat Mat Mat Slots Evolved 4 | . . 2 2 Power 1 | . . 1 . Propulsion 2 | . . . 2 Utility 1 | . . 1 . Weapon . | . . . . Parts Attached 36 | 6 7 15 8 Power 6 | 1 . 4 1 Engine 6 | 1 . 4 1 Core . | . . . . Reactor . | . . . . Propulsion 9 | 3 1 4 1 Treads . | . . . . Leg 8 | 3 1 3 1 Wheel . | . . . . Hover . | . . . . Flight 1 | . . 1 . Utility 9 | . 4 3 2 Device 4 | . 1 2 1 Storage 2 | . 2 . . Processor 1 | . . 1 . Hackware . | . . . . Protection 2 | . 1 . 1 Artifact . | . . . . Weapon 12 | 2 2 4 4 Energy Gun 6 | . . 2 4 Energy Cannon . | . . . . Ballistic Gun 4 | 2 . 2 . Ballistic Cannon . | . . . . Launcher 2 | . 2 . . Special Weapon . | . . . . Impact Weapon . | . . . . Slashing Weapon . | . . . . Piercing Weapon . | . . . . Special Melee Weapon . | . . . . Unidentified Prototypes 1 | . . . 1 Corrupted Parts 3 | . . 3 . System Corruption 16 | . . 16 . Parts Lost 22 | . . 11 11 Power 4 | . . 2 2 Propulsion 6 | . . 4 2 Utility 4 | . . 2 2 Weapon 8 | . . 3 5 Highest Loss Streak 11 | . . 6 11 To Critical Strikes . | . . . . Average Slot Usage (%) 70 | . 93 62 59 Engine 10 | . 14 6 12 Leg 18 | . 28 16 12 Device 2 | . 1 2 2 Storage 10 | . 9 11 9 Processor 3 | . . 3 7 Protection 5 | . 12 2 1 Energy Gun 2 | . . 4 2 Ballistic Gun 11 | . 16 9 11 Launcher 4 | . 10 4 . Naked Turns . | . . . . Heaviest Build 28 | 5 18 26 28 Greatest Support 20 | 20 20 20 20 Greatest Overweight (x) 8 | . . 5 8 Average Overweight (x) . | . . . 1 Largest Inventory Capacity 25 | 5 25 10 10 Average Capacity 9 | 5 8 10 10 Most Carried 9 | 2 7 8 9 Average Carried 4 | . 4 4 7 Final Capacity 10 | 5 10 10 10 Final Carried 7 | 1 6 7 6 Class Distribution -------------------- 77% | Mutant 22% | Scavenger-Mutant Dominant Class ---------------- Mutant | -10/Materials Mutant | -9/Materials Scavenger-Mutant | -8/Materials Resources | -11 -10 -9 -8 ----------- Run | Yrd Mat Mat Mat Matter Collected 891 | 280 113 418 80 Remotely . | . . . . Salvage Created 785 | 71 128 364 222 Parts 62 | 4 14 28 16 Haulers Intercepted 1 | . . 1 . Recyclers Shooed 1 | . . 1 . Parts Field Recycled . | . . . . Retrieved Matter . | . . . . Parts Self-Destructed . | . . . . Prevented . | . . . . Kills | -11 -10 -9 -8 ------- Run | Yrd Mat Mat Mat Combat Hostiles Destroyed 23 | 1 8 10 4 Guns 8 | 1 . 3 4 AOE 15 | . 8 7 . Classes Destroyed 10 | 2 3 3 2 Worker 1 | . . . 1 Builder 2 | . 2 . . Tunneler 1 | 1 . . . Hauler 1 | . . 1 . Recycler 1 | . . 1 . Watcher 1 | . 1 . . Swarmer 8 | . 6 2 . Grunt 11 | 1 2 5 3 Sentry 3 | . . 3 . Hunter 1 | . . . 1 Best Kill Streak 6 | 2 6 5 3 Combat Bots Only 5 | 1 4 5 3 Max Kills in Single Turn 2 | 1 2 2 1 Gunslinging . | . . . . Exploded 2 | . 2 2 . Melee . | . . . . Uniques/NPCs Destroyed . | . . . . Combat | -11 -10 -9 -8 -------- Run | Yrd Mat Mat Mat Hostile Shots Fired 276 | 12 29 89 146 Missed 80 | 1 12 34 33 Damage Taken 2835 | 121 244 737 1733 Core 842 | 34 31 217 560 Absorbed by Shields . | . . . . Redirected to Shielding 52 | . 22 30 . Regen/Repaired (Parts) 37 | . 37 . . Core Remaining (%) 68 | 86 74 45 . Volleys Fired 108 | 10 20 32 46 Largest 2 | 2 2 2 2 Hottest 65 | 40 50 65 65 Shots Fired 163 | 20 37 51 55 Gun 132 | 20 20 37 55 Cannon . | . . . . Launcher 31 | . 17 14 . Special . | . . . . Kinetic 100 | 20 20 25 35 Thermal 16 | . . . 16 Explosive 31 | . 17 14 . Electromagnetic 16 | . . 12 4 Robot Hit Streak 10 | 4 4 10 9 Robot Miss Streak 5 | 5 4 2 3 Penetration Max . | . . . . Secondary Targets . | . . . . Shots Hit Robots 97 | 9 15 34 39 Core Hits 57 | 4 18 23 12 Critical Kills . | . . . . Critical Parts Destroyed . | . . . . Critical Strikes 1 | . . 1 . Corrupt 1 | . . 1 . Melee Attacks . | . . . . Impact . | . . . . Slashing . | . . . . Piercing . | . . . . Sneak Attacks . | . . . . Combat Hostiles . | . . . . Follow-up Attacks . | . . . . Damage Inflicted 2362 | 105 735 894 628 Guns 1003 | 105 45 280 573 Cannons . | . . . . Explosions 1356 | . 690 611 55 Melee . | . . . . Ramming 3 | . . 3 . Kinetic 545 | 105 45 127 268 Thermal 314 | . . . 314 Explosive 1301 | . 690 611 . Electromagnetic 199 | . . 153 46 Impact . | . . . . Slashing . | . . . . Piercing . | . . . . Highest Corruption 16 | . . 16 2 Average Corruption 13 | . . 15 2 Corruption Purged . | . . . . Corruption Blocked . | . . . . Effects 8 | . . 8 . Message Errors 2 | . . 2 . Matter Fused 2 | . . 2 . Energy Discharges 1 | . . 1 . Data Loss (minor) 2 | . . 2 . Weapon Failures 1 | . . 1 . Overload Shots . | . . . . Overflow Damage 28 | . 28 . . Projectiles . | . . . . Explosions 28 | . 28 . . Melee . | . . . . Knockbacks . | . . . . Impact . | . . . . Kinetic . | . . . . Secondary . | . . . . Self-Inflicted Damage 127 | . 100 27 . Shots 5 | . 3 2 . Rammed . | . . . . Targets Rammed 1 | . . 1 . Kicked 1 | . . 1 . Crushed . | . . . . Highest Temperature 126 | 12 26 84 126 Average Temperature 26 | 8 9 27 37 Received Heat Transfer 1272 | 66 27 297 882 Siege Activations . | . . . . Robots Corrupted . | . . . . Combat Hostiles . | . . . . Parts Fried . | . . . . Impact Corruptions . | . . . . Robots Melted . | . . . . Combat Hostiles . | . . . . Parts Melted . | . . . . Heat Transferred 605 | . . . 605 Parts Sabotaged . | . . . . Parts Stolen . | . . . . Parts Stripped . | . . . . Power Chain Reactions 1 | . . . 1 Alert | -11 -10 -9 -8 ------- Run | Yrd Mat Mat Mat Peak Influence 408 | 25 403 408 132 Initial 169 | . 16 169 102 Average 203 | 4 181 316 106 Maximum Alert Level 2 | . 2 2 . Low Security (%) 49 | 100 49 9 100 Level 1 44 | . 31 88 . Level 2 5 | . 19 1 . Level 3 . | . . . . Level 4 . | . . . . Level 5 . | . . . . High Security . | . . . . Max Security . | . . . . Squads Dispatched 2 | . . 1 1 Investigation . | . . . . Extermination . | . . . . Reinforcement 2 | . . 1 1 Assault . | . . . . Garrison . | . . . . Intercept . | . . . . Searches Triggered . | . . . . Construction Impeded . | . . . . Haulers Reinforced . | . . . . Active Scanning Responses . | . . . . Cargo Convoy Interrupts . | . . . . Stealth | -11 -10 -9 -8 --------- Run | Yrd Mat Mat Mat Distress Signals 3 | . 2 1 . Communications Jammed . | . . . . Distress Signals . | . . . . Times Spotted 37 | 1 13 15 8 Peak Tracking Total 7 | 1 4 6 7 Tactical Retreats 2 | . 1 . 1 Traps | -11 -10 -9 -8 ------- Run | Yrd Mat Mat Mat Traps Triggered . | . . . . Indirectly . | . . . . Trap Hack Attempts . | . . . . Triggered . | . . . . Disarmed . | . . . . Reprogrammed . | . . . . Reused . | . . . . Traps Extracted . | . . . . Installed . | . . . . Triggered . | . . . . Machines | -11 -10 -9 -8 ---------- Run | Yrd Mat Mat Mat Machines Disabled 2 | . 1 1 . Max in Single Turn 1 | . 1 1 . Machines Repaired . | . . . . Machines Dismantled . | . . . . Machines Sabotaged . | . . . . Overloaded Fab Kills . | . . . . Hacking | -11 -10 -9 -8 --------- Run | Yrd Mat Mat Mat Machines Accessed 3 | . 2 1 . Terminals 1 | . . 1 . Fabricators . | . . . . Repair Stations 1 | . 1 . . Recycling Units 1 | . 1 . . Scanalyzers . | . . . . Garrison Access . | . . . . Total Hacks 8 | . 4 4 . Successful 8 | . 4 4 . Failed . | . . . . Catastrophic . | . . . . Database Lockouts . | . . . . Manual . | . . . . Terminals 4 | . . 4 . Fabricators . | . . . . Repair Stations 2 | . 2 . . Recycling Units 2 | . 2 . . Scanalyzers . | . . . . Garrison Access . | . . . . Terminal Hacks 4 | . . 4 . Record 3 | . . 3 . Locate Traps 1 | . . 1 . Fabricator Hacks . | . . . . Repair Station Hacks 2 | . 2 . . Scan Component 1 | . 1 . . Repair 1 | . 1 . . Recycling Unit Hacks 2 | . 2 . . Process 1 | . 1 . . Report Inventory 1 | . 1 . . Scanalyzer . | . . . . Garrison Access Hacks . | . . . . Unauthorized Hacks . | . . . . Terminals . | . . . . Fabricators . | . . . . Repair Stations . | . . . . Recycling Units . | . . . . Scanalyzers . | . . . . Garrison Access . | . . . . Data Cores Recovered . | . . . . Used . | . . . . Hacking Detections 3 | . 2 1 . Full Trace Events . | . . . . Feedback Events . | . . . . Feedback Blocked . | . . . . Robot Schematics Acquired . | . . . . Robots Built . | . . . . Authchips . | . . . . Time . | . . . . Total Robot Build Rating . | . . . . Part Schematics Acquired . | . . . . Parts Built . | . . . . Authchips . | . . . . Time . | . . . . Total Part Build Rating . | . . . . Parts Repaired 1 | . 1 . . Time 26 | . 26 . . Parts Recycled . | . . . . Recycled Matter 4 | . 4 . . Retrieved Matter . | . . . . Retrieved Components . | . . . . Parts Scanalyzed . | . . . . Part Schematics Acquired . | . . . . Parts Damaged . | . . . . Bothacking | -11 -10 -9 -8 ------------ Run | Yrd Mat Mat Mat Used RIF Installer . | . . . . Robots Hacked . | . . . . Non-combat . | . . . . Combat . | . . . . Robot Hacks Applied . | . . . . Relay Couplers Released . | . . . . Fabnet Peak Effective % . | . . . . Robots Rewired . | . . . . Allies Hacked . | . . . . Hacks Repelled . | . . . . Allies | -11 -10 -9 -8 -------- Run | Yrd Mat Mat Mat Total Allies . | . . . . Largest Group . | . . . . Highest-Rated Group . | . . . . Highest-Rated Ally . | . . . . Total Orders . | . . . . Ally Attacks . | . . . . Total Damage . | . . . . Kills . | . . . . Allies Corrupted . | . . . . Allies Melted . | . . . . Intel | -11 -10 -9 -8 ------- Run | Yrd Mat Mat Mat Robot Analysis Total . | . . . . Derelict Logs Recovered . | . . . . Drone Launches . | . . . . Drone Recoveries . | . . . . Exploration | -11 -10 -9 -8 ------------- Run | Yrd Mat Mat Mat Turns Passed 1109 | 100 298 453 258 Spaces Moved 558 | 61 189 235 73 Core 59 | 16 . 37 6 Treads . | . . . . Legs 499 | 45 189 198 67 Wheels . | . . . . Hover . | . . . . Flight . | . . . . Fastest Speed 50 | 50 120 120 190 Average Speed 139 | 101 120 146 197 Slowest Speed 450 | 120 120 300 450 Overloaded Moves . | . . . . Propulsion Burnouts . | . . . . Robots Hopped . | . . . . Cave-ins Triggered . | . . . . Exploration Rate (%) 19 | 5 36 27 9 Regions Visited 3 Branch Regions . Pre-discovered Areas . | . . . . Known Exits Taken 1 | . . 1 . Unknown Exits Taken 2 | 1 1 . . Scrap Searched . | . . . . Spaces Dug . | . . . . Terrain Destroyed 146 | . 84 53 9 Melee . | . . . . Projectile . | . . . . AOE 146 | . 84 53 9 Terrain Rammed . | . . . . Walls Destroyed . | . . . . Machines Disabled . | . . . . Actions | -11 -10 -9 -8 --------- Run | Yrd Mat Mat Mat Total 737 | 82 226 296 133 Wait . | . . . . Move 555 | 60 188 234 73 Hop . | . . . . Pick Up 34 | 6 9 13 6 Fast Attach . | . . . . Attach 29 | 5 4 13 7 Detach 2 | . 1 1 . Swap 7 | 1 3 2 1 Drop 1 | . 1 . . Fire 108 | 10 20 32 46 Melee . | . . . . Ram . | . . . . Kick 1 | . . 1 . Crush . | . . . . Escape Stasis . | . . . . Rewire . | . . . . Trap . | . . . . Miscellaneous . | . . . . Route ------- -11/Scrapyard -10/Materials -9/Materials -8/Materials History --------- Turn | Location | Event 2 | -11/Scrapyard | Met Revision 17 53 | -11/Scrapyard | Discovered new exit (range 8) 101 | -11/Scrapyard | Entered Materials 313 | -10/Materials | Build established: Mutant 326 | -10/Materials | Discovered new exit (range 16) 382 | -10/Materials | Repaired Grenade Launcher 399 | -10/Materials | Entered another Materials area 399 | -9/Materials | Evolved 2 slots: Power x1, Utility x1 545 | -9/Materials | Lost 6 parts (3n2u1w) 636 | -9/Materials | System corruption reached 10% 642 | -9/Materials | Lost 3 parts (1p1n1w) 794 | -9/Materials | Core integrity fell below 50% 813 | -9/Materials | Discovered new exit (range 16) 850 | -9/Materials | Identified exit to Materials 852 | -9/Materials | Entered another Materials area 852 | -8/Materials | Evolved 2 slots: Propulsion x2 1064 | -8/Materials | Core integrity fell below 50% 1089 | -8/Materials | Core integrity fell below 20% 1110 | -8/Materials | Destroyed by G-47 Trooper with Particle Gun Last Messages --------------- K-01 Serf collects debris. Acquired 50 matter. Hvy. Particle Gun destroyed. Acquired Aluminum Leg. U-05 Engineer lays Concrete. K-01 Serf collects debris. U-05 Engineer lays Concrete. Acquired Particle Gun. U-05 Engineer lays Concrete. K-01 Serf collects debris. U-05 Engineer lays Concrete. G-47 Trooper destroyed. U-05 Engineer lays Concrete. K-01 Serf collects debris. U-05 Engineer lays Concrete. Y-45 Defender IFF system glitched. U-05 Engineer destroyed. K-01 Serf collects debris. Critical hit (Burn: +37). K-01 Serf collects debris. Map ----- +----------------------------------------------------+ | ?????????????????????????????????????????????????? | | ?????????????????????????????????????????????????? | | ?????????????????????????????????????????????????? | | ?????????????????????????????????????????????????? | | ?????????????????????????????????????????????????? | | ?????????????????????????????????????????????????? | | ?????????????????????????????????????????????????? | | ?????????????????????????????????????????????????? | | ?????????????????????????????????????????????????? | | ?????????????????????????????????????????????????? | | ?????????????????????????????????????????????????? | | ?????????????????????????????????????????????????? | | ?????????????????????????????????"???????????????? | | ????????????????????????????????? ????????????? | | ????????????????????????????????? ?????????????? | | ??????????????????????????? ???? ????????????? | | ???????????????????????????????? ????????????? | | ?????????????????????????????? ? " ????????????? | | ??????????????????????????###### """"???????????? | | ?????????????###?##?????### ""? ??????????? | | ?????????????# ? ?????? % ! ????? ???????? | | ?????????????? ? ?? ?? ??????????????? | | ???????????????? ? ? ??? ??????????????? | | ?????????????????####"???#? #??????????? ????? | | ?????????????????#; !;###### #?? ???? ????? ???? | | ?????????????????#;*%Y @ # ##????????????????? | | ?????????????????## ! ! !=# #?? ???"??????????? | | ????????????# # %!!=%g #?????????????????? | | ????????? # !!k=# #?????????????????? | | ????????? ?? # [=%# ##########????????? | | ????????? ???????# """" *# # #????????? | | ??????????????????# """"" !# # """ #????????? | | ??????????????????# """"" # %# """ #?#??????? | | ??????????????????# # # """ #?? ?????? | | ??????????????????#?######## + #????????? | | ????????????????????????#??# # """ #????????? | | ???????????????????????????# # """ #?????#??? | | ???????????????????????????# # """ #????????# | | ???????????????????????????# # #????????? | | ???????????????????????????# ##########????????? | | ???????????????????????????# # #????????? | | ???????????????????????????# + """ #????????? | | ?????????????????########### # """ #????????? | | ?????????????????# # # """ #???#????? | | ?????????????????# = / # # #????????? | | ?????????????????# # ##########????????? | | ?????????????????# # ################??? | | ?????????????????# # # | | ?????????????????# + # | | ?????????????????# # ##############????? | +----------------------------------------------------+ Best States ------------- Heat Dissipation 31 Energy Generation 17 Energy Capacity 415 Matter Stores 300 Matter Capacity 300 Sight Range 16 Terrain Scan Range 14 Terrain Scan Density 10 Armor Coverage 225 Weapon Shielding 33 Evasion (%) 55 Item Schematics ----------------- None Robot Schematics ------------------ None Fabricated ------------ Nothing Alien Tech Used ----------------- None Achievements -------------- Storm Trooper System Compromised Uninvited Guest Challenges ------------ None Game ------ Seed MiningConstructNanovents Manual? 0 Play Time 00:20:10 Cumulative 0.7 hours Start 2024.05.03 @ 21:14:04 End 2024.05.03 @ 21:35:30 Sessions 1 Manual Loads 0 Difficulty Rogue Special Mode None Game No. 2 Rogue 2 Adventurer 0 Explorer 0 Win Type - Total 0 Types 0/0/0/0/0/0/0/0/0 Lore% 1 Gallery% 2 Achievement% 3 Wizard Run 0 Options --------- Layout 1 ASCII 0 Keyboard 0 Movement Mouse Keybinds 0 Fullscreen 1 Font 24/Smallcaps Map View 50x35 Zoom Use 0% Tactical HUD 0 Map Filters NONE Filters NONE Steam 1 RUN: 945fb129-54c4-4e8b-948b-e0892c92afc8